bitfinex/quotes_ETHUSD_20240711
["timestamp","ask_amount","ask_price","bid_price","bid_amount"]
[1720669141432,3.05113309,3077.9,3076.9,0.24777851]
[1720669141636,1.19124277,3077.8,3076.8,3.0]
[1720669141961,1.12606103,3077.7,3076.7,2.4131]
[1720669142321,0.06517414,3077.6,3076.7,2.4131]
[1720669142529,0.34983093,3077.6,3076.7,2.4131]
[1720669143358,1.36586402,3077.6,3076.7,2.4131]
[1720669143531,0.72730723,3077.6,3076.7,2.4131]
[1720669144070,0.06517414,3077.6,3076.7,2.4131]
[1720669144563,3.38219963,3077.9,3076.7,2.4131]
[1720669144564,0.06517034,3077.5,3076.7,2.4131]
[1720669144773,0.66213309,3077.7,3076.7,2.4131]
[1720669144945,0.66213309,3077.7,3076.8,0.24131]
[1720669144946,0.06516653,3077.4,3076.8,0.24131]
[1720669145136,0.66213309,3077.7,3076.8,3.24131]
[1720669145338,0.06513983,3077.3,3076.8,3.24131]
[1720669145631,0.66213309,3077.7,3076.8,3.24131]
[1720669145831,0.06513603,3077.2,3076.8,3.30598281]
[1720669146063,0.66213309,3077.7,3076.9,0.57190828]
[1720669146368,1.01620613,3077.7,3077.0,0.0646599]
[1720669146530,0.06514106,3077.6,3077.0,3.0646599]
[1720669146730,0.66213309,3077.8,3077.0,3.0646599]
[1720669146951,0.0651398,3077.5,3077.0,3.0646599]
[1720669147160,0.66213309,3077.7,3077.1,0.59071682]
[1720669147369,0.065136,3077.4,3077.1,0.59071682]
[1720669147604,0.66213309,3077.8,3077.1,0.59071682]
[1720669147741,0.0651322,3077.3,3077.1,0.59071682]
[1720669147930,0.66213309,3077.7,3077.1,0.59071682]
[1720669148152,0.66213309,3077.3,3077.0,3.0]
[1720669148350,0.66213309,3077.2,3076.5,3.0]
[1720669148533,0.7272793,3077.2,3076.5,3.0]
[1720669150151,1.021929,3077.1,3076.5,3.0]
[1720669150395,0.66213309,3076.9,3076.2,0.6]
[1720669150595,0.66213309,3076.5,3076.2,0.6]
[1720669150892,3.73069377,3076.4,3076.2,0.6]
[1720669151198,3.49669101,3076.3,3076.2,0.6]
[1720669151394,1.04588857,3076.3,3076.2,0.33800526]
[1720669151597,2.2374586,3076.3,3076.2,0.33800526]
[1720669151761,3.89810695,3076.3,3076.2,0.33800526]
[1720669151961,1.51720173,3076.3,3076.2,0.33800526]
[1720669152157,1.7534803,3076.3,3076.2,0.33800526]
[1720669152374,1.08915188,3076.3,3076.2,0.33800526]
[1720669152581,0.42476276,3076.3,3076.2,0.33800526]
[1720669152979,0.42476276,3076.3,3076.2,0.40272234]
[1720669152980,0.06494914,3076.3,3076.2,0.40272234]
[1720669153178,0.06494914,3076.3,3076.2,0.29708931]
[1720669153501,0.06467226,3076.3,3076.2,0.23237223]
[1720669153676,0.66438912,3076.7,3076.2,0.23237223]
[1720669153874,0.06468775,3076.6,3076.2,0.23237223]
[1720669154922,0.06468775,3076.6,3075.9,3.0]
[1720669154923,0.66474444,3076.5,3075.9,3.0]
[1720669155072,0.66474444,3076.3,3075.5,2.562]
[1720669155270,1.39417663,3076.6,3075.5,2.562]
[1720669155271,0.06470613,3076.2,3075.6,3.0]
[1720669155472,0.66474444,3076.4,3075.6,3.0]
[1720669155696,1.07827454,3076.3,3075.6,3.0]
[1720669156001,1.07827454,3076.3,3075.6,3.79524]
[1720669156002,0.34881988,3076.2,3075.6,3.79524]
[1720669156210,0.72945336,3076.3,3075.6,3.79524]
[1720669156393,0.06467259,3076.1,3075.6,3.79524]
[1720669156600,0.66474444,3076.1,3075.6,3.79524]
[1720669156796,0.99711666,3076.3,3075.6,3.79524]
[1720669156797,0.06463946,3076.0,3075.6,3.79524]
[1720669157107,0.66474444,3076.3,3075.7,0.635724]
[1720669157290,0.0645982,3076.2,3075.7,0.635724]
[1720669157469,1.07743967,3076.2,3075.7,0.635724]
[1720669157669,0.7287688,3076.2,3075.7,3.635724]
[1720669157896,1.01282661,3076.1,3075.7,0.635724]
[1720669158103,0.9962559,3076.3,3075.7,0.635724]
[1720669158104,0.06451371,3076.0,3075.7,0.635724]
[1720669158272,0.6641706,3076.4,3075.8,0.06474533]
[1720669158476,0.06453124,3076.3,3075.8,0.06474533]
[1720669158937,0.6641706,3076.5,3075.8,0.06474533]
[1720669159079,0.06442546,3076.2,3076.1,2.562]
[1720669159381,0.9962559,3077.0,3076.1,3.11688328]
[1720669159382,0.6641706,3077.0,3076.1,3.11688328]
[1720669159609,0.6641706,3077.2,3076.2,5.2629]
[1720669159911,0.06184666,3077.1,3076.3,0.06468205]
[1720669160211,0.06184666,3077.1,3076.4,0.53275821]
[1720669160212,0.6641706,3077.1,3076.4,0.53275821]
[1720669160525,0.06184541,3077.0,3076.4,0.53275821]
[1720669162000,1.07789079,3077.0,3076.2,3.0]
[1720669162201,0.6641706,3076.8,3075.9,3.0]
[1720669162402,0.6641706,3076.8,3075.8,2.2629]
[1720669162730,0.72631361,3076.7,3075.8,2.2629]
[1720669162925,1.01608047,3076.6,3075.9,0.5460624]
[1720669163229,0.06209468,3076.5,3075.9,0.5460624]
[1720669163992,0.06209468,3076.5,3075.9,3.5460624]
[1720669164193,0.66411741,3076.5,3075.9,3.5460624]
[1720669164393,0.06194308,3076.4,3075.9,3.5460624]
[1720669165226,0.06194308,3076.4,3076.0,0.58089624]
[1720669165593,0.66411741,3076.6,3075.9,3.5460624]
[1720669165594,0.6639607,3076.7,3076.6,0.2]
[1720669165794,1.03033984,3076.7,3076.6,0.2]
[1720669166089,1.03030508,3076.7,3076.6,0.2]
[1720669166313,1.32819595,3076.7,3076.6,0.2]
[1720669166552,2.35850103,3076.7,3076.6,0.11457347]
[1720669166691,2.76038161,3076.7,3076.6,0.11457347]
[1720669166897,1.34746311,3076.7,3076.6,0.11457347]
[1720669167126,0.99575111,3076.8,3076.6,0.11457347]
[1720669167427,2.0112256,3076.8,3076.6,0.11457347]
[1720669167603,1.01179466,3076.7,3076.6,0.11457347]
[1720669168101,0.66383341,3076.9,3076.6,0.11457347]
[1720669168302,1.0117833,3076.8,3076.6,0.11457347]
[1720669168608,0.66383341,3076.8,3076.6,0.11457347]
[1720669169690,0.66383341,3076.8,3076.6,0.31457347]
[1720669170615,1.34393366,3076.7,3076.6,0.31457347]
[1720669170801,1.61110758,3076.7,3076.6,0.31457347]
[1720669171103,1.34393366,3076.7,3076.6,0.31457347]
[1720669171527,1.02353656,3076.7,3076.6,0.31457347]
[1720669172289,1.34410347,3076.7,3076.6,0.31457347]
[1720669173420,0.34807953,3076.7,3076.6,0.31457347]
[1720669173626,1.34410347,3076.7,3076.6,0.31457347]
[1720669173826,0.66412429,3076.7,3076.6,0.31457347]
[1720669174134,1.34418228,3076.7,3076.6,0.31457347]
[1720669174496,1.37196231,3076.7,3076.6,0.31457347]
[1720669174931,1.6925232,3076.7,3076.6,0.31457347]
[1720669175230,0.69634374,3076.7,3076.6,0.31457347]
[1720669175393,1.6925232,3076.7,3076.6,0.31457347]
[1720669176397,1.67852866,3076.7,3076.6,0.31457347]
[1720669176630,3.00633417,3076.7,3076.6,0.31457347]
[1720669177137,2.65814877,3076.7,3076.6,0.31457347]
[1720669177337,1.38149123,3076.7,3076.6,0.31457347]
[1720669177498,2.3561159,3076.7,3076.6,0.31457347]
[1720669177693,2.02940524,3076.7,3076.6,0.31457347]
[1720669177931,2.70955729,3076.7,3076.6,0.31457347]
[1720669178545,1.38149737,3076.7,3076.6,0.31457347]
[1720669178756,1.75922404,3076.7,3076.6,0.31457347]
[1720669179340,1.42725152,3076.7,3076.6,0.31457347]
[1720669179647,1.42725152,3076.7,3076.6,0.57667082]
[1720669179648,0.41005946,3076.7,3076.6,0.57667082]
[1720669179799,0.41005946,3076.7,3076.6,2.94775435]
[1720669179994,0.41005946,3076.7,3076.6,5.94775435]
[1720669180230,0.34815834,3076.7,3076.6,5.94775435]
[1720669180697,0.34815834,3076.7,3076.6,5.88307082]
[1720669181349,0.66400508,3077.6,3076.6,5.88307082]
[1720669181525,1.01706382,3077.5,3076.8,1.922]
[1720669181842,1.07900961,3077.4,3076.8,1.922]
[1720669182138,0.72595087,3077.4,3076.8,1.922]
[1720669182707,0.72595087,3077.4,3076.8,1.98666858]
[1720669183041,0.06194579,3077.4,3076.8,1.922]
[1720669183337,0.06194579,3077.4,3076.9,0.55103071]
[1720669183533,0.06194579,3077.4,3077.0,0.06466721]
[1720669184033,0.06194579,3077.4,3077.1,2.3777]
[1720669184235,0.66409755,3077.7,3077.1,2.3777]
[1720669184442,0.06194026,3077.3,3077.1,2.3777]
[1720669184611,0.66409755,3077.6,3077.2,0.54423672]
[1720669184939,0.66409755,3077.6,3077.1,2.3777]
[1720669185161,0.06194786,3077.5,3077.1,2.3777]
[1720669185831,0.66409755,3077.7,3077.1,2.3777]
[1720669186052,0.06194406,3077.4,3077.1,2.3777]
[1720669186226,0.66409755,3077.7,3077.1,2.3777]
[1720669186440,0.06194026,3077.3,3077.1,2.97703901]
[1720669186713,0.06193646,3077.2,3077.1,2.97703901]
[1720669187029,0.66409755,3077.7,3077.1,5.3777]
[1720669187355,0.66409755,3077.8,3077.2,1.922]
[1720669187560,0.99614633,3078.0,3077.2,1.922]
[1720669187561,0.06195166,3077.6,3077.2,1.922]
[1720669187856,0.06195546,3077.7,3077.3,0.42997]
[1720669188058,0.06194786,3077.5,3077.3,0.42997]
[1720669188347,0.66409755,3077.8,3077.3,0.42997]
[1720669188348,0.06194406,3077.4,3077.3,0.42997]
[1720669188728,0.66409755,3077.8,3077.3,0.42997]
[1720669188958,0.06195546,3077.7,3077.3,0.42997]
[1720669189950,0.66409755,3077.9,3077.3,0.42997]
[1720669190112,0.06221889,3077.6,3077.3,0.42997]
[1720669190451,0.66409755,3077.9,3077.3,0.42997]
[1720669190652,0.06221509,3077.5,3077.3,0.42997]
[1720669190807,0.66409755,3077.9,3077.3,0.42997]
[1720669191012,0.06221129,3077.4,3077.2,1.922]
[1720669191208,1.01708544,3077.8,3077.2,1.922]
[1720669191209,0.66409755,3077.8,3077.2,1.922]
[1720669191477,0.06220749,3077.3,3077.2,1.922]
[1720669191655,0.66409755,3077.8,3077.2,1.922]
[1720669191809,0.66409755,3077.8,3077.2,2.65197]
[1720669192012,0.0622227,3077.7,3077.2,2.65197]
[1720669193347,0.66409755,3077.6,3077.1,2.3777]
[1720669193659,0.06221509,3077.5,3077.1,2.3777]
[1720669195924,0.06012738,3077.4,3077.1,2.3777]
[1720669196157,0.66409755,3077.7,3076.9,3.0]
[1720669196465,0.66409755,3077.7,3076.7,2.2863]
[1720669196466,0.06012358,3077.3,3076.7,2.2863]
[1720669196779,0.66409755,3077.1,3076.6,0.31457347]
[1720669196925,0.66409755,3077.0,3076.6,0.31457347]
[1720669197268,1.24253782,3076.9,3076.6,0.31457347]
[1720669197420,1.01647327,3076.8,3076.6,0.31457347]
[1720669197626,0.6635795,3076.8,3076.6,0.31457347]
[1720669197824,0.06004012,3076.7,3076.6,0.31457347]
[1720669198269,0.41294747,3076.7,3076.6,0.31457347]
[1720669198631,1.07652697,3076.7,3076.6,0.31457347]
[1720669199341,1.30031903,3076.7,3076.6,0.31457347]
[1720669199541,0.63673953,3076.7,3076.6,0.31457347]
[1720669199746,0.63673953,3076.7,3076.0,4.922]
[1720669200065,1.01648717,3076.6,3076.0,4.922]
[1720669200474,0.66357982,3076.6,3076.0,4.922]
[1720669200878,0.66357982,3076.8,3076.0,4.922]
[1720669201035,0.66357982,3077.0,3076.0,4.922]
[1720669201347,0.05996389,3076.9,3076.0,4.922]
[1720669201570,0.66357982,3077.0,3076.1,0.73538]
[1720669201571,1.01632511,3076.8,3076.1,0.73538]
[1720669201764,0.35273888,3076.7,3076.1,3.73538]
[1720669201929,0.66357982,3076.8,3076.1,3.73538]
[1720669202125,0.05995323,3076.7,3076.1,3.73538]
[1720669202326,0.66357982,3076.9,3076.1,3.73538]
[1720669202651,0.66357982,3077.3,3076.4,1.922]
[1720669202873,0.66357982,3077.4,3076.8,1.922]
[1720669203048,0.05997647,3077.2,3076.8,1.922]
[1720669203226,0.66339063,3077.5,3076.8,1.922]
[1720669203227,0.06002864,3077.3,3077.0,2.3495]
[1720669203428,0.06002103,3077.1,3076.8,1.922]
[1720669203626,0.66339063,3077.3,3076.5,2.3495]
[1720669203856,0.06001723,3077.0,3076.5,5.77665]
[1720669204099,0.66339063,3077.2,3076.5,5.77665]
[1720669204231,0.66339063,3077.0,3076.5,3.0]
[1720669204444,0.66339063,3076.8,3076.3,0.06470341]
[1720669204657,0.0600718,3076.9,3076.3,0.06470341]
[1720669204832,0.06005926,3076.7,3076.3,0.06470341]
[1720669205162,0.99508594,3077.2,3076.3,0.06470341]
[1720669205163,0.66339063,3077.2,3076.3,0.06470341]
[1720669205381,1.01666376,3077.1,3076.4,0.36304414]
[1720669205531,0.7234651,3077.1,3076.4,0.36304414]
[1720669205963,0.06007447,3077.1,3076.4,2.34974762]
[1720669206288,0.06007447,3077.1,3076.4,2.28504414]
[1720669206664,0.66342808,3077.2,3076.4,2.28504414]
[1720669206965,1.07673683,3077.1,3076.3,3.0]
[1720669207156,0.35324618,3077.0,3076.2,3.565738]
[1720669207360,0.0600567,3076.9,3076.2,3.565738]
[1720669208068,0.66342808,3077.1,3076.2,3.565738]
[1720669208271,0.06005289,3076.8,3076.2,3.565738]
[1720669208472,0.66342808,3077.0,3076.2,3.565738]
[1720669208631,0.06004909,3076.7,3076.2,3.565738]
[1720669208833,0.66342808,3077.0,3076.3,0.5915238]
[1720669209093,0.66342808,3077.0,3076.2,3.565738]
[1720669209239,0.41821789,3076.9,3076.2,3.565738]
[1720669209434,0.0600567,3076.9,3076.2,3.565738]
[1720669209758,0.66342808,3076.8,3076.2,3.0]
[1720669209934,0.72348211,3076.7,3076.1,5.3495]
[1720669210135,0.35817874,3076.6,3076.1,3.0]
[1720669210387,0.05998228,3076.5,3075.7,2.413]
[1720669210599,0.72341036,3076.5,3075.7,2.413]
[1720669210748,1.02160682,3076.4,3075.7,2.413]
[1720669211093,0.05993983,3076.3,3075.7,2.413]
[1720669211848,0.05993983,3076.3,3075.7,5.413]
[1720669212048,0.05993983,3076.3,3075.8,0.7335]
[1720669212582,0.05993983,3076.3,3075.8,3.0]
[1720669212972,0.66342808,3076.5,3075.7,5.413]
[1720669212973,0.66342808,3076.4,3075.7,5.413]
[1720669213173,0.05994743,3076.2,3075.7,5.413]
[1720669213478,0.05985045,3076.3,3075.7,5.413]
[1720669213787,0.05984664,3076.2,3075.8,0.7335]
[1720669214092,0.05984664,3076.2,3075.8,3.7335]
[1720669214287,0.66342808,3076.4,3075.8,3.7335]
[1720669214486,0.05984284,3076.1,3075.8,3.7335]
[1720669214690,0.66342808,3076.4,3075.8,3.7335]
[1720669214850,0.05983903,3076.0,3075.9,0.61465]
[1720669215410,1.32685616,3076.8,3075.9,0.61465]
[1720669215411,0.66342808,3076.8,3075.9,0.61465]
[1720669215574,0.99514212,3076.9,3075.9,0.61465]
[1720669215575,0.66342808,3076.9,3076.2,1.922]
[1720669215774,0.66342808,3077.3,3076.6,1.922]
[1720669215982,0.66342808,3077.5,3076.7,0.06466952]
[1720669216180,0.99514212,3077.6,3076.8,0.2]
[1720669216181,0.66317537,3077.6,3076.8,0.2]
[1720669216792,0.35807285,3077.5,3076.8,0.2]
[1720669216967,0.66317537,3077.6,3076.9,0.06466173]
[1720669217513,0.35808879,3077.5,3076.9,0.06466173]
[1720669217735,0.66317537,3077.6,3076.9,0.06466173]
[1720669218004,0.66317537,3077.9,3077.0,4.3361]
[1720669218213,1.0212562,3077.9,3077.1,3.758612]
[1720669218362,0.66317537,3078.0,3077.1,3.758612]
[1720669218558,0.35807227,3077.9,3077.1,3.758612]
[1720669218763,0.35807161,3077.9,3077.2,0.06463676]
[1720669218976,0.66317537,3078.0,3077.3,0.38232488]
[1720669219215,0.42387041,3079.0,3077.1,3.45556879]
[1720669219420,1.02140672,3078.0,3077.1,3.45556879]
[1720669219562,0.35806437,3077.9,3077.1,3.45556879]
[1720669219870,1.02139947,3077.9,3077.2,0.77916688]
[1720669220070,0.66334235,3077.9,3077.2,0.77916688]
[1720669220710,1.02139016,3077.8,3077.2,0.77916688]
[1720669221007,0.99501353,3078.0,3077.2,0.77916688]
[1720669221008,0.66334235,3077.9,3077.2,0.77916688]
[1720669221409,1.02139804,3077.8,3077.2,0.77916688]
[1720669221620,0.66334235,3077.8,3077.3,0.42347357]
[1720669221910,0.99501353,3077.9,3077.3,0.42347357]
[1720669221911,0.66334235,3077.9,3077.3,0.42347357]
[1720669223003,1.02138264,3077.8,3077.1,3.0]
[1720669223180,1.02144673,3077.7,3077.0,2.4141]
[1720669223364,1.02144673,3077.6,3077.0,2.4141]
[1720669223562,1.0214948,3077.5,3077.0,2.4141]
[1720669223803,0.06054653,3077.4,3077.0,2.4141]
[1720669224365,0.06054653,3077.4,3076.9,3.0]
[1720669224366,0.89577912,3077.4,3076.9,3.0]
[1720669224680,0.35824338,3077.3,3076.8,0.2]
[1720669224897,1.02158573,3077.3,3076.8,0.2]
[1720669225092,0.0604804,3077.2,3076.8,0.2]
[1720669225411,0.99501353,3077.5,3076.8,0.2]
[1720669225412,0.66334235,3077.5,3076.8,0.2]
[1720669225569,0.06048983,3077.1,3076.8,0.2]
[1720669226000,0.66342879,3077.2,3076.8,0.2]
[1720669226206,0.06041299,3077.0,3076.8,0.2]
[1720669226365,0.66342879,3077.2,3076.8,0.2]
[1720669226571,0.06041679,3077.1,3076.8,0.2]
[1720669227470,0.66342879,3077.2,3076.8,0.2]
[1720669227669,0.06041651,3077.0,3076.8,0.2]
[1720669227906,0.66342879,3077.0,3076.8,0.2]
[1720669228109,1.08704056,3076.9,3076.8,0.2]
[1720669229069,1.08702433,3076.9,3076.8,0.2]
[1720669229519,1.29524108,3076.9,3076.8,0.2]
[1720669229820,0.06031953,3076.9,3076.8,0.2]
[1720669230675,0.66342879,3077.2,3076.8,0.2]
[1720669230873,0.0601746,3076.9,3076.8,0.2]
[1720669231091,0.99514319,3077.3,3076.8,0.2]
[1720669231092,0.66342879,3077.0,3076.8,0.2]
[1720669231278,0.0601746,3076.9,3076.8,0.2]
[1720669231798,0.09385717,3076.9,3076.8,0.2]
[1720669232908,0.09385717,3076.9,3076.8,0.94131]
[1720669233200,0.66342879,3077.6,3076.8,0.94131]
[1720669233201,0.66342879,3077.6,3076.8,3.94131]
[1720669233599,1.12045475,3077.5,3076.8,3.94131]
[1720669233772,1.0266344,3077.4,3076.8,3.2]
[1720669233972,0.45701968,3077.3,3076.8,0.2]
[1720669234221,0.75724372,3077.3,3076.8,0.2]
[1720669234698,0.09381493,3077.3,3076.8,0.2]
[1720669236175,0.34028999,3077.2,3076.8,0.2]
[1720669236373,0.09395383,3077.1,3076.9,0.54911]
[1720669236574,0.34028999,3077.2,3076.9,0.54911]
[1720669236810,0.09393929,3077.1,3077.0,1.922]
[1720669237314,0.34028999,3077.2,3077.0,1.922]
[1720669238476,1.238544,3077.1,3075.0,19.86]
[1720669238719,0.66330986,3076.3,3074.6,4.2131]
[1720669239018,0.66330986,3075.9,3075.4,1.922]
[1720669239253,0.75735631,3076.2,3075.8,1.922]
[1720669239514,0.66330986,3076.3,3075.8,1.922]
[1720669239715,0.36325316,3076.2,3075.1,2.2911]
[1720669239874,0.66330986,3076.3,3075.4,1.922]
[1720669240082,0.66330986,3076.4,3075.4,1.922]
[1720669240309,0.66330986,3076.2,3075.4,1.922]
[1720669240509,0.66330986,3076.3,3075.8,1.922]
[1720669240722,0.66330986,3076.5,3075.9,2.283]
[1720669240876,0.66330986,3076.6,3075.9,2.283]
[1720669241072,0.66330986,3076.7,3075.9,5.283]
[1720669241303,0.36328806,3076.6,3075.9,5.283]
[1720669241496,1.02661979,3076.6,3075.9,5.283]
[1720669241719,0.66330986,3076.6,3075.9,5.283]
[1720669241938,0.36330628,3076.5,3075.9,5.283]
[1720669242144,0.66319562,3076.4,3075.9,5.283]
[1720669242301,1.0264913,3076.4,3075.9,5.283]
[1720669242621,0.66319562,3076.4,3075.9,5.283]
[1720669242822,0.66319562,3076.4,3075.9,3.0]
[1720669242823,0.37169394,3076.3,3075.9,3.0]
[1720669243026,1.03488956,3076.3,3075.4,4.2158]
[1720669243231,0.66319562,3076.3,3075.5,3.0]
[1720669243743,1.03483,3076.2,3075.5,3.0]
[1720669243943,0.66319562,3076.2,3075.5,3.0]
[1720669245801,0.66319562,3076.3,3075.5,3.72158]
[1720669246003,0.3715401,3076.2,3075.5,3.72158]
[1720669246202,0.66319562,3076.3,3075.5,3.72158]
[1720669246432,0.37153142,3076.2,3075.5,3.72158]
[1720669246643,0.66319562,3076.3,3075.5,3.72158]
[1720669246844,0.37158198,3076.2,3075.6,0.793738]
[1720669247042,0.66319562,3076.3,3075.6,0.793738]
[1720669247246,1.03489182,3076.2,3075.5,3.0]
[1720669247429,0.3716962,3076.1,3075.5,3.0]
[1720669247609,1.03489182,3076.1,3075.5,3.0]
[1720669247805,0.66319562,3076.1,3075.5,3.0]
[1720669248611,0.66319562,3076.2,3075.5,3.0]
[1720669248815,0.66319562,3076.2,3075.5,3.72158]
[1720669249045,0.66319562,3076.4,3075.8,1.922]
[1720669250613,0.66319562,3076.5,3075.8,1.922]
[1720669251042,0.37151005,3076.4,3075.8,1.922]
[1720669251252,0.66319562,3076.5,3075.8,1.922]
[1720669251418,0.3714934,3076.4,3075.8,1.922]
[1720669251746,0.66319562,3076.5,3075.8,1.922]
[1720669252146,0.37150384,3076.4,3075.8,1.922]
[1720669252445,0.66319562,3076.5,3075.8,1.922]
[1720669252648,0.37151242,3076.4,3075.8,1.922]
[1720669252817,0.66319562,3076.5,3075.8,1.922]
[1720669253017,0.37152104,3076.4,3075.8,1.922]
[1720669253218,0.66319562,3076.5,3075.8,1.922]
[1720669253821,0.09342294,3076.4,3075.8,1.922]
[1720669255206,0.09342294,3076.4,3075.8,2.1142]
[1720669255344,1.0034592,3076.8,3075.8,2.1142]
[1720669255545,0.37151539,3076.7,3075.8,2.1142]
[1720669255849,0.09349434,3076.7,3075.8,2.1142]
[1720669256073,0.09349434,3076.7,3075.9,0.51142]
[1720669256386,0.09349434,3076.7,3075.9,3.51142]
[1720669256750,0.09349434,3076.7,3076.2,4.3276]
[1720669256946,0.09349434,3076.7,3076.3,3.0]
[1720669257585,0.66319562,3077.2,3076.3,3.0]
[1720669257759,1.03484628,3077.2,3076.4,0.73276]
[1720669257961,0.0936281,3077.1,3076.4,0.73276]
[1720669258993,0.09362394,3077.0,3076.4,0.73276]
[1720669259164,0.66319562,3077.3,3076.4,0.73276]
[1720669259368,0.09362935,3077.2,3076.5,0.393276]
[1720669260194,0.75682497,3077.2,3076.5,0.393276]
[1720669261295,0.75700581,3077.2,3076.5,0.393276]
[1720669263382,0.09362935,3077.2,3076.5,0.393276]
[1720669264189,0.09362935,3077.2,3076.6,1.922]
[1720669264413,0.09362935,3077.2,3076.7,0.2315276]
[1720669265688,0.09362935,3077.2,3076.8,2.3717]
[1720669265936,1.33529199,3077.5,3076.8,5.3717]
[1720669265937,1.00360376,3077.5,3076.8,5.3717]
[1720669266397,0.09378127,3077.4,3076.8,5.3717]
[1720669267189,0.66337646,3077.5,3076.8,5.3717]
[1720669267521,0.09378127,3077.4,3076.9,0.56032276]
[1720669267727,0.09378127,3077.4,3076.9,3.56032276]
[1720669268702,0.75715773,3077.4,3076.9,3.56032276]
[1720669268904,0.09378127,3077.4,3076.9,3.56032276]
[1720669270624,0.09378127,3077.4,3077.0,1.922]
[1720669270797,0.09378127,3077.4,3077.1,0.54823228]
[1720669270998,0.66457549,3077.7,3077.1,0.54823228]
[1720669271205,0.09399026,3077.6,3077.5,1.922]
[1720669271430,0.66457549,3078.0,3077.5,1.922]
[1720669271631,0.09408256,3077.6,3077.5,1.922]
[1720669271814,0.66457549,3078.0,3077.5,2.4142]
[1720669272024,0.09411868,3077.9,3077.5,1.922]
[1720669273412,0.66457549,3078.2,3077.5,1.922]
[1720669273704,0.09422583,3078.1,3077.5,1.922]
[1720669274036,0.09421732,3078.0,3077.5,1.922]
[1720669274215,0.66457549,3078.3,3077.5,1.922]
[1720669274419,0.09422527,3078.2,3077.5,2.739158]
[1720669274748,0.75880076,3078.2,3077.5,2.739158]
[1720669275043,0.09422527,3078.2,3077.5,2.739158]
[1720669277608,1.00482158,3078.4,3077.5,2.739158]
[1720669277814,0.46620772,3078.3,3077.5,2.739158]
[1720669278023,0.09438566,3078.3,3077.6,0.2739158]
[1720669281291,0.09438566,3078.3,3077.9,1.922]
[1720669281777,0.34023573,3078.8,3078.0,2.34]
[1720669281984,0.34023573,3078.8,3078.3,1.922]
[1720669282188,0.09440994,3078.7,3078.3,1.922]
[1720669282543,0.34023573,3078.8,3078.3,1.922]
[1720669282755,0.34023573,3078.8,3078.3,2.4142]
[1720669282966,0.66457549,3079.4,3078.3,2.4142]
[1720669283279,0.09450151,3079.3,3078.3,2.4142]
[1720669286174,0.66457549,3079.7,3078.3,2.4142]
[1720669286380,0.09462337,3079.2,3078.3,2.4142]
[1720669286576,3.11297549,3079.8,3078.4,0.24142]
[1720669286874,2.4484,3079.8,3078.5,2.3117]
[1720669287096,0.0946418,3079.7,3078.5,2.3117]
[1720669287397,0.0946418,3079.7,3078.5,5.3117]
[1720669287592,0.25430418,3079.6,3078.5,6.108432]
[1720669287805,0.25430418,3079.6,3078.7,1.922]
[1720669288086,0.09463801,3079.5,3078.7,1.922]
[1720669288286,0.34023731,3079.9,3078.7,1.922]
[1720669288486,0.09466834,3079.4,3078.7,1.922]
[1720669288692,0.34023731,3079.9,3078.7,1.922]
[1720669288893,0.09466563,3079.3,3078.7,1.922]
[1720669289198,0.34023731,3079.9,3078.8,0.4922]
[1720669289487,0.09467915,3079.8,3078.8,0.4922]
[1720669289715,0.09467915,3079.8,3079.1,1.922]
[1720669290556,0.34022255,3080.4,3079.1,1.922]
[1720669290974,0.09472805,3080.3,3079.1,1.922]
[1720669291292,0.09472805,3080.3,3079.1,2.66365]
[1720669291495,0.09472805,3080.3,3079.2,3.0]
[1720669293816,0.09472805,3080.3,3079.3,2.3056]
[1720669293975,0.09472805,3080.3,3079.5,1.922]
[1720669294507,0.09490757,3080.2,3079.5,1.922]
[1720669294708,0.3401671,3080.7,3079.5,1.922]
[1720669294917,0.09491306,3080.1,3079.5,1.922]
[1720669295116,0.55,3080.6,3079.5,2.64476]
[1720669295413,0.09491036,3080.0,3079.5,2.64476]
[1720669295623,0.3401671,3080.7,3079.6,3.0]
[1720669295919,0.09492658,3080.6,3079.6,3.0]
[1720669297279,0.08117129,3080.5,3079.4,3.0]
[1720669297509,0.09493612,3080.5,3079.3,2.3056]
[1720669299221,0.09493612,3080.5,3079.3,3.02836]
[1720669299380,0.09493612,3080.5,3079.4,3.0]
[1720669299782,0.63117106,3080.4,3079.3,2.3056]
[1720669299983,1.2929848,3080.4,3079.3,2.3056]
[1720669300287,0.37004174,3080.3,3079.3,2.3056]
[1720669300802,0.09492259,3080.3,3079.3,2.3056]
[1720669301180,0.08117847,3080.2,3079.3,2.3056]
[1720669301592,0.09491462,3080.1,3079.3,2.3056]
[1720669302217,0.55,3080.4,3079.3,2.3056]
[1720669302591,2.46642002,3080.3,3079.3,2.3056]
[1720669302796,0.36785539,3080.2,3079.3,2.3056]
[1720669303117,0.09492004,3080.1,3079.3,2.3056]
[1720669303322,0.09492004,3080.1,3079.3,4.2276]
[1720669303982,0.6621339,3080.5,3079.3,4.2276]
[1720669304181,0.09534936,3080.0,3079.3,4.2276]
[1720669304421,0.6621339,3080.5,3079.3,4.65036]
[1720669304616,0.09534376,3079.9,3079.3,4.2276]
[1720669304819,0.6621339,3080.6,3079.3,4.2276]
[1720669304988,1.0330919,3080.6,3079.3,4.2276]
[1720669305187,0.09535998,3080.5,3079.3,4.2276]
[1720669305414,0.09535998,3080.5,3080.1,0.2]
[1720669305608,0.09535998,3080.5,3080.1,0.1097488]
[1720669306504,3.415201,3080.7,3080.1,0.1097488]
[1720669306717,0.09538197,3080.4,3080.1,0.1097488]
[1720669307047,3.415201,3080.7,3080.1,0.1097488]
[1720669307183,0.09537854,3080.3,3080.1,0.1097488]
[1720669307386,1.10297409,3080.6,3080.1,0.1097488]
[1720669307629,0.09538019,3080.2,3080.1,0.1097488]
[1720669307786,0.6621339,3080.5,3080.1,0.1097488]
[1720669307987,0.09538019,3080.2,3080.1,0.1097488]
[1720669308187,1.12520231,3080.4,3080.1,0.1097488]
[1720669308188,0.6621339,3080.5,3080.1,0.1097488]
[1720669308387,0.09538019,3080.2,3080.1,0.1097488]
[1720669308611,0.6621339,3080.4,3080.1,0.1097488]
[1720669308821,0.09538019,3080.2,3080.1,0.1097488]
[1720669309022,0.16553348,3080.3,3080.1,0.1097488]